bitfinex-derivatives/quotes_BTCF0:USTF0_20250127
["timestamp","ask_amount","ask_price","bid_price","bid_amount"]
[1737977199382,0.00251382,99133.0,99121.0,0.201885]
[1737977200276,0.00251382,99133.0,99117.0,0.36132]
[1737977200473,0.201865,99131.0,99117.0,0.3608]
[1737977201170,0.201871,99128.0,99117.0,0.3608]
[1737977201371,0.1869252,99130.0,99117.0,0.3608]
[1737977201677,0.201881,99123.0,99117.0,0.3608]
[1737977201979,0.1869252,99130.0,99117.0,0.3608]
[1737977202181,0.201875,99126.0,99117.0,0.3608]
[1737977202486,0.1869252,99140.0,99125.0,0.3608]
[1737977202680,0.3887712,99140.0,99139.0,0.3608]
[1737977202880,0.201846,99140.0,99139.0,0.3608]
[1737977204178,0.201846,99140.0,99139.0,0.3618]
[1737977204571,0.201846,99140.0,99139.0,0.3608]
[1737977204881,0.201846,99140.0,99139.0,0.3618]
[1737977205081,0.203846,99140.0,99139.0,0.3618]
[1737977205282,0.23308897,99140.0,99139.0,0.3618]
[1737977206177,0.23308897,99140.0,99139.0,0.3608]
[1737977206382,0.23308897,99140.0,99139.0,0.3618]
[1737977207975,0.23108897,99140.0,99139.0,0.3618]
[1737977208176,0.23308897,99140.0,99139.0,0.3618]
[1737977208880,0.050465,99133.0,99123.0,0.00015136]
[1737977209077,0.201891,99118.0,99117.0,0.24425871]
[1737977210089,0.3608,99132.0,99117.0,0.24425871]
[1737977210388,0.201885,99122.0,99118.0,0.1042]
[1737977211285,0.00015123,99127.0,99118.0,0.1042]
[1737977211483,0.25098362,99118.0,99117.0,0.24525871]
[1737977211686,0.25098362,99118.0,99117.0,0.001]
[1737977211888,0.25098362,99118.0,99105.0,0.3608]
[1737977211889,0.201915,99106.0,99105.0,0.3608]
[1737977213277,0.201934,99097.0,99096.0,0.00015136]
[1737977214989,0.201924,99102.0,99096.0,0.00215136]
[1737977215189,0.201924,99102.0,99101.0,0.3608]
[1737977215694,0.08181519,99106.0,99101.0,0.3608]
[1737977215889,0.05224398,99106.0,99102.0,0.1014]
[1737977216279,0.04924398,99106.0,99102.0,0.1014]
[1737977216486,0.04924398,99106.0,99103.0,0.1031]
[1737977217492,0.05224398,99106.0,99103.0,0.1031]
[1737977218189,0.05224398,99106.0,99103.0,0.1041]
[1737977218985,0.1238976,99106.0,99103.0,0.1041]
[1737977219290,0.1228976,99106.0,99103.0,0.1041]
[1737977219791,0.1228976,99106.0,99105.0,0.562717]
[1737977220188,0.1509328,99113.0,99105.0,0.3608]
[1737977220487,0.1509328,99113.0,99110.0,0.3608]
[1737977222882,0.201904,99111.0,99110.0,0.3608]
[1737977224188,0.09051916,99115.0,99102.0,0.3608]
[1737977224389,0.09051916,99115.0,99084.0,0.17811243]
[1737977224390,0.3608,99103.0,99084.0,0.17811243]
[1737977224584,0.3608,99091.0,99073.0,0.2963]
[1737977224779,0.201955,99086.0,99078.0,0.3608]
[1737977225088,0.201967,99080.0,99078.0,0.3608]
[1737977225289,0.201967,99080.0,99073.0,0.0962]
[1737977226086,0.201967,99080.0,99079.0,0.24100946]
[1737977226294,0.03048468,99080.0,99079.0,0.24100946]
[1737977226493,0.00015136,99089.0,99079.0,0.60480946]
[1737977226689,0.00015136,99089.0,99080.0,0.2011]
[1737977226884,0.00015136,99089.0,99088.0,0.3608]
[1737977227089,0.0991,99114.0,99095.0,0.201935]
[1737977227090,0.201899,99114.0,99095.0,0.201935]
[1737977227288,0.2019,99113.0,99104.0,0.3608]
[1737977227490,0.02998817,99114.0,99105.0,0.1971]
[1737977227794,0.201923,99102.0,99096.0,0.3608]
[1737977227986,0.1869252,99106.0,99096.0,0.3608]
[1737977228187,0.201932,99097.0,99096.0,0.3608]
[1737977228894,0.201947,99090.0,99089.0,0.09855136]
[1737977229291,0.201947,99090.0,99089.0,0.00015136]
[1737977230588,0.201947,99090.0,99089.0,0.00315136]
[1737977230899,0.201947,99090.0,99074.0,0.4633]
[1737977231100,0.5477252,99084.0,99057.0,0.0957]
[1737977231395,0.20201,99059.0,99058.0,0.0971]
[1737977231692,0.1869252,99070.0,99058.0,0.0971]
[1737977231893,0.3608,99076.0,99064.0,0.3608]
[1737977232195,0.201998,99065.0,99064.0,0.3608]
[1737977232888,0.00015136,99074.0,99064.0,0.3608]
[1737977233396,0.20213136,99074.0,99064.0,0.3608]
[1737977233583,0.03823951,99074.0,99064.0,0.3608]
[1737977233983,0.00151459,99079.0,99073.0,0.3608]
[1737977234182,0.003,99074.0,99073.0,0.3608]
[1737977234792,0.15574544,99074.0,99073.0,0.3608]
[1737977234993,0.00151459,99079.0,99078.0,0.201971]
[1737977235195,0.02478785,99083.0,99077.0,0.201973]
[1737977235596,0.02478785,99083.0,99079.0,0.201969]
[1737977235892,0.02478785,99083.0,99075.0,0.3608]
[1737977235893,0.22674985,99083.0,99075.0,0.3608]
[1737977236099,0.02478785,99083.0,99075.0,0.3608]
[1737977236399,0.02478785,99083.0,99078.0,0.002]
[1737977236896,0.201969,99079.0,99078.0,0.002]
[1737977237100,0.02478785,99083.0,99075.0,0.3608]
[1737977237797,0.201967,99080.0,99075.0,0.3608]
[1737977238002,0.02478785,99083.0,99075.0,0.3608]
[1737977238198,0.201971,99079.0,99075.0,0.3608]
[1737977238886,0.09044707,99081.0,99075.0,0.3608]
[1737977240090,0.13617815,99081.0,99075.0,0.3618]
[1737977240896,0.201967,99080.0,99075.0,0.3618]
[1737977241091,0.13617815,99081.0,99075.0,0.3618]
[1737977241293,0.201975,99076.0,99075.0,0.3618]
[1737977241489,0.201975,99076.0,99075.0,0.001]
[1737977242000,0.09044707,99080.0,99066.0,0.3608]
[1737977242198,0.201994,99067.0,99066.0,0.3608]
[1737977242705,0.3608,99072.0,99057.0,0.3608]
[1737977243002,0.202012,99058.0,99057.0,0.3608]
[1737977243201,0.3608,99072.0,99057.0,0.3608]
[1737977243202,0.04717339,99072.0,99057.0,0.3608]
[1737977243500,0.201977,99075.0,99067.0,0.3608]
[1737977243697,0.04569644,99075.0,99068.0,0.1046]
[1737977243898,0.09044707,99080.0,99068.0,0.2064]
[1737977244097,0.09044707,99080.0,99079.0,0.3608]
[1737977245900,0.04581796,99090.0,99079.0,0.3608]
[1737977246804,0.04581796,99090.0,99079.0,0.3618]
[1737977247104,0.00151436,99096.0,99082.0,0.3608]
[1737977247302,0.04658448,99093.0,99082.0,0.562763]
[1737977247600,0.00151436,99096.0,99082.0,0.562763]
[1737977248099,0.04708926,99094.0,99082.0,0.562763]
[1737977248298,0.00151436,99096.0,99082.0,0.562763]
[1737977248596,0.00151436,99096.0,99083.0,0.20196]
[1737977248800,0.00151436,99096.0,99095.0,0.3608]
[1737977250096,0.04895416,99096.0,99095.0,0.3608]
[1737977250309,0.00151436,99096.0,99095.0,0.3608]
[1737977251406,0.201945,99091.0,99090.0,0.3608]
[1737977252810,0.04793044,99096.0,99090.0,0.3608]
[1737977252811,0.201939,99094.0,99090.0,0.3608]
[1737977253112,0.201939,99094.0,99090.0,0.3618]
[1737977253407,0.04793044,99096.0,99090.0,0.3618]
[1737977253715,0.201945,99091.0,99090.0,0.3618]
[1737977253911,0.29246243,99091.0,99090.0,0.3618]
[1737977254101,0.29246243,99091.0,99090.0,0.3608]
[1737977254302,0.09051743,99091.0,99090.0,0.3608]
[1737977255902,0.09051743,99091.0,99090.0,0.3618]
[1737977256412,0.09051743,99091.0,99090.0,0.563747]
[1737977256811,0.09051743,99091.0,99090.0,0.3618]
[1737977257308,0.09051743,99091.0,99090.0,0.3608]
[1737977257509,0.201944,99092.0,99090.0,0.3618]
[1737977257812,0.201945,99091.0,99090.0,0.3618]
[1737977258405,0.201945,99091.0,99090.0,0.379]
[1737977259100,0.201945,99091.0,99090.0,0.0182]
[1737977259813,0.3608,99093.0,99086.0,1e-08]
[1737977259814,0.201953,99087.0,99086.0,1e-08]
[1737977266218,0.25106036,99087.0,99086.0,1e-08]
[1737977266418,0.04910736,99087.0,99086.0,1e-08]
[1737977269722,0.201944,99092.0,99086.0,1e-08]
[1737977270020,0.201944,99092.0,99090.0,0.3608]
[1737977271112,0.15103012,99094.0,99090.0,0.3608]
[1737977271717,0.15103012,99094.0,99091.0,0.0951]
[1737977272716,0.15103012,99094.0,99092.0,0.201941]
[1737977272917,0.15103012,99095.0,99091.0,0.0951]
[1737977273218,0.15103012,99095.0,99094.0,0.3608]
[1737977275424,0.15103012,99095.0,99094.0,0.562739]
[1737977278725,0.00015135,99096.0,99094.0,0.562739]
[1737977278927,0.00015135,99096.0,99095.0,0.302537]
[1737977279628,0.00015135,99096.0,99095.0,0.1006]
[1737977281428,0.00015135,99096.0,99095.0,0.302537]
[1737977281624,1e-08,99096.0,99095.0,0.602537]
[1737977281827,0.15103012,99102.0,99095.0,0.1006]
[1737977282132,0.04909546,99104.0,99101.0,0.3608]
[1737977282329,0.04909546,99104.0,99103.0,0.20192]
[1737977283243,0.15103308,99112.0,99101.0,0.3608]
[1737977283429,0.12453263,99111.0,99106.0,0.3608]
[1737977283733,0.20342631,99107.0,99106.0,0.3608]
[1737977285735,0.2507005,99107.0,99106.0,0.3608]
[1737977286038,0.0487885,99107.0,99106.0,0.3608]
[1737977287531,0.12222346,99107.0,99106.0,0.3608]
[1737977287733,0.12222346,99107.0,99106.0,0.562714]
[1737977288225,0.12222346,99107.0,99106.0,0.3608]
[1737977288630,0.12322346,99107.0,99106.0,0.562714]
[1737977288836,0.12322346,99107.0,99106.0,0.3608]
[1737977289031,0.201931,99098.0,99097.0,0.3608]
[1737977289736,0.20193,99099.0,99097.0,0.3608]
[1737977289937,0.201931,99098.0,99097.0,0.3608]
[1737977292234,0.202931,99098.0,99097.0,0.3608]
[1737977292734,0.201953,99087.0,99085.0,0.3608]
[1737977293434,0.20199,99069.0,99068.0,0.00052]
[1737977293633,0.202002,99064.0,99057.0,0.23800946]
[1737977293931,0.202012,99058.0,99057.0,0.23800946]
[1737977295835,0.202022,99053.0,99052.0,0.36231432]
[1737977296438,0.03844602,99058.0,99052.0,0.36231432]
[1737977296739,0.202011,99059.0,99057.0,0.005]
[1737977297040,0.03991198,99059.0,99057.0,0.005]
[1737977297344,0.202012,99058.0,99052.0,0.36531432]
[1737977297738,0.202012,99058.0,99052.0,0.36231432]
[1737977298043,0.202012,99058.0,99057.0,0.004]
[1737977299140,0.202031,99049.0,99048.0,0.23816082]
[1737977299339,0.562831,99049.0,99048.0,0.15493603]
[1737977300541,0.3608,99049.0,99048.0,0.15493603]
[1737977300741,0.00015136,99067.0,99048.0,0.51573603]
[1737977300933,0.09059816,99058.0,99049.0,0.1054]
[1737977302441,0.202025,99052.0,99048.0,0.3648]
[1737977302847,0.202025,99052.0,99048.0,0.3628]
[1737977303049,0.202025,99052.0,99049.0,0.001]
[1737977303244,0.202014,99057.0,99049.0,0.001]
[1737977304340,0.12372358,99058.0,99049.0,0.001]
[1737977304547,0.202029,99050.0,99049.0,0.001]
[1737977304742,0.202029,99050.0,99048.0,0.3638]
[1737977304951,0.03312542,99058.0,99048.0,0.3638]
[1737977305151,0.202012,99058.0,99048.0,0.3638]
[1737977305547,0.001,99057.0,99049.0,0.001]
[1737977305757,0.001,99057.0,99056.0,0.3608]
[1737977306241,0.001,99058.0,99056.0,0.3608]
[1737977306447,0.001,99058.0,99057.0,0.1043]
[1737977307042,0.03294081,99065.0,99057.0,0.1043]
[1737977307356,0.00015136,99067.0,99056.0,0.3608]
[1737977307558,0.00015136,99067.0,99057.0,0.1029]
[1737977308350,0.20214636,99067.0,99057.0,0.1029]
[1737977308751,0.001,99058.0,99057.0,0.1029]
[1737977309353,0.03361659,99067.0,99057.0,0.3128]
[1737977309549,0.03561659,99067.0,99057.0,0.3128]
[1737977309947,0.03361659,99067.0,99057.0,0.514813]
[1737977310151,0.001,99058.0,99057.0,0.514813]
[1737977310658,0.00015136,99067.0,99057.0,0.3128]
[1737977310852,0.00015136,99067.0,99064.0,0.3608]
[1737977311854,0.00015136,99067.0,99066.0,0.201996]
[1737977312162,0.00015136,99067.0,99064.0,0.3608]
[1737977312357,0.00015136,99067.0,99064.0,0.3618]
[1737977312547,0.00115136,99067.0,99064.0,0.3618]
[1737977312952,0.00115136,99067.0,99064.0,0.563798]
[1737977313153,0.00115136,99067.0,99066.0,0.001]
[1737977313752,0.00115136,99067.0,99066.0,0.202996]
[1737977313952,0.00015136,99067.0,99066.0,0.001]
[1737977314862,0.00015136,99067.0,99064.0,0.3618]
[1737977315263,0.00015136,99067.0,99064.0,0.563798]
[1737977315762,0.00115136,99067.0,99066.0,0.001]
[1737977316758,0.20314536,99067.0,99066.0,0.001]
[1737977317466,0.20214536,99067.0,99066.0,0.001]
[1737977317662,0.20314536,99067.0,99066.0,0.001]
[1737977317968,0.201998,99065.0,99064.0,0.3618]
[1737977318857,0.201998,99065.0,99064.0,0.3608]
[1737977319767,0.201998,99065.0,99064.0,0.3618]
[1737977320067,0.201998,99065.0,99064.0,0.001]
[1737977320865,0.202998,99065.0,99064.0,0.001]
[1737977321569,0.202998,99065.0,99057.0,0.1029]
[1737977321570,0.202012,99058.0,99057.0,0.1029]
[1737977323257,0.203012,99058.0,99057.0,0.1029]
[1737977323568,0.203012,99058.0,99057.0,0.1039]
[1737977325868,0.23649003,99058.0,99057.0,0.1039]
[1737977327569,0.001,99058.0,99057.0,0.1039]
[1737977328464,0.001,99058.0,99057.0,0.001]
[1737977328972,0.203012,99058.0,99057.0,0.001]
[1737977331169,0.001,99058.0,99057.0,0.001]
[1737977332674,0.001,99058.0,99057.0,0.563814]
[1737977333174,0.15057803,99062.0,99057.0,0.39567912]
[1737977333378,0.15057803,99062.0,99061.0,0.202006]
[1737977334466,0.15157803,99062.0,99061.0,0.202006]
[1737977336577,0.15057803,99062.0,99061.0,0.202006]
[1737977336770,0.15057803,99062.0,99061.0,0.203006]
[1737977338380,0.00015136,99067.0,99062.0,0.202003]
[1737977338381,0.12091069,99064.0,99062.0,0.202003]
[1737977338579,0.12091069,99064.0,99063.0,0.202002]
[1737977340177,0.12091069,99064.0,99062.0,0.001]
[1737977340377,0.12091069,99064.0,99063.0,0.001]
[1737977342579,0.23636212,99066.0,99063.0,0.001]
[1737977342882,0.03436512,99066.0,99058.0,0.3608]
[1737977343083,0.00015136,99067.0,99058.0,0.3608]
[1737977343785,0.201998,99065.0,99058.0,0.3608]
[1737977343984,0.00015136,99067.0,99058.0,0.3608]
[1737977344381,0.201997,99066.0,99058.0,0.3608]
[1737977344686,0.20201,99059.0,99058.0,0.3608]
[1737977344884,0.202027,99051.0,99048.0,0.3608]
[1737977345091,0.202031,99049.0,99048.0,0.3608]
[1737977346681,0.202031,99049.0,99048.0,0.3628]
[1737977347080,0.202031,99049.0,99048.0,0.3648]
[1737977347889,0.23592764,99049.0,99048.0,0.3648]
[1737977348488,0.3608,99061.0,99048.0,0.3648]
[1737977348687,0.202018,99055.0,99048.0,0.5813]
[1737977349385,0.12453263,99060.0,99048.0,0.5813]
[1737977349689,0.12091069,99065.0,99050.0,0.202029]
[1737977349889,0.12091069,99065.0,99048.0,0.5789]
[1737977350094,0.12091069,99065.0,99051.0,0.202026]
[1737977350387,0.12091069,99065.0,99060.0,0.3608]
[1737977350601,0.1813875,99067.0,99065.0,0.201998]
[1737977350888,0.202003,99063.0,99060.0,0.3608]
[1737977351091,0.1813875,99067.0,99060.0,0.3608]
[1737977351491,0.1813875,99067.0,99062.0,0.202003]
[1737977351677,0.1813875,99067.0,99060.0,0.3608]
[1737977351883,0.1813875,99067.0,99066.0,0.201996]
[1737977352188,0.0066875,99067.0,99066.0,0.201996]
[1737977352786,0.0066875,99067.0,99061.0,0.202006]
[1737977352990,0.0066875,99067.0,99060.0,0.3608]
[1737977353488,0.0066875,99067.0,99065.0,0.3608]
[1737977353794,0.201996,99066.0,99065.0,0.3608]
[1737977354296,0.0066875,99067.0,99065.0,0.3608]
[1737977354597,0.09069948,99069.0,99065.0,0.3608]
[1737977354787,0.29269048,99069.0,99065.0,0.3608]
[1737977355494,0.09069948,99069.0,99065.0,0.3608]
[1737977358205,0.201992,99068.0,99057.0,0.3608]
[1737977358409,0.12093264,99069.0,99056.0,0.3608]
[1737977358999,0.12093264,99069.0,99064.0,0.3608]
[1737977359500,0.12093264,99069.0,99068.0,0.201992]
[1737977359803,0.12093264,99069.0,99064.0,0.562799]
[1737977359997,0.12093264,99069.0,99064.0,0.3608]
[1737977361899,0.12093264,99069.0,99064.0,0.3618]
[1737977362298,0.12093264,99069.0,99068.0,0.201992]
[1737977362701,0.12093264,99072.0,99064.0,0.3618]
[1737977363002,0.12093264,99072.0,99071.0,0.201986]
[1737977363305,0.12093264,99072.0,99064.0,0.3618]
[1737977363500,0.12093264,99072.0,99064.0,0.3608]
[1737977363806,0.12093264,99072.0,99064.0,0.5638]
[1737977364114,0.12093264,99072.0,99066.0,0.201996]
[1737977364302,0.12093264,99072.0,99064.0,0.3618]
[1737977364504,0.12093264,99072.0,99067.0,0.201994]
[1737977365306,0.12453263,99074.0,99067.0,0.201994]
[1737977365604,0.12453263,99074.0,99064.0,0.3608]
[1737977365820,0.201987,99071.0,99064.0,0.3608]
[1737977366214,0.12453263,99074.0,99064.0,0.3608]
[1737977366215,0.201998,99065.0,99064.0,0.3608]
[1737977366611,0.20199,99070.0,99064.0,0.3608]
[1737977366817,0.12453263,99074.0,99064.0,0.3608]
[1737977367011,0.201992,99068.0,99064.0,0.3608]
[1737977367923,0.12093264,99077.0,99067.0,0.3608]
[1737977368119,0.15268049,99087.0,99076.0,0.3608]
[1737977368319,0.15268049,99087.0,99086.0,0.562755]
[1737977368527,0.57020247,99115.0,99086.0,0.562755]
[1737977368528,0.20992248,99115.0,99111.0,0.201902]
[1737977368710,0.20940247,99115.0,99114.0,0.562698]
[1737977369823,0.20940247,99115.0,99114.0,0.3608]
[1737977370127,0.20940247,99115.0,99114.0,0.562698]
[1737977370714,0.21440247,99115.0,99114.0,0.562698]
[1737977371523,0.20940247,99115.0,99114.0,0.563698]
[1737977373115,0.20940247,99115.0,99114.0,0.58851844]
[1737977373519,0.20940247,99115.0,99114.0,0.3618]
[1737977373930,0.201884,99121.0,99114.0,0.3618]
[1737977374125,0.1077,99124.0,99114.0,0.563697]
[1737977375022,0.1077,99124.0,99114.0,0.562697]
[1737977375923,0.1077,99124.0,99114.0,0.3608]
[1737977376125,0.1077,99124.0,99119.0,0.201887]
[1737977376329,0.0904118,99127.0,99119.0,0.201887]
[1737977376630,0.0904118,99127.0,99114.0,0.562697]
[1737977376927,0.0904118,99127.0,99114.0,0.3608]
[1737977377729,0.12453263,99130.0,99114.0,0.3608]
[1737977377923,0.20187,99128.0,99114.0,0.3608]
[1737977378230,0.12453263,99130.0,99109.0,0.02526232]
[1737977378231,0.3608,99126.0,99109.0,0.02526232]
[1737977378431,0.12453263,99122.0,99111.0,0.3608]
[1737977379626,0.3608,99126.0,99111.0,0.3608]
[1737977379817,0.3608,99126.0,99111.0,0.562704]
[1737977380019,0.3608,99126.0,99111.0,0.3608]
[1737977380429,0.3608,99126.0,99115.0,0.201895]
[1737977380627,0.001,99122.0,99116.0,0.201893]
[1737977381334,0.001,99122.0,99112.0,0.201901]
[1737977381528,0.3618,99126.0,99111.0,0.3608]
[1737977381724,0.3618,99126.0,99119.0,0.3608]
[1737977383534,0.3608,99126.0,99119.0,0.3608]
[1737977384231,0.3618,99126.0,99119.0,0.3608]
[1737977384931,0.3618,99126.0,99119.0,0.38545541]
[1737977386838,0.3618,99126.0,99119.0,0.58734141]
[1737977387028,0.3608,99126.0,99119.0,0.38545541]
[1737977387334,0.563674,99126.0,99119.0,0.38545541]
[1737977387534,0.3618,99126.0,99119.0,0.38545541]
[1737977389328,0.001,99126.0,99119.0,0.38545541]
[1737977389538,0.001,99126.0,99121.0,0.201883]
[1737977390737,0.21494443,99130.0,99121.0,0.201883]
[1737977391035,0.001,99126.0,99121.0,0.201883]
[1737977391438,0.001,99126.0,99119.0,0.38597541]
[1737977391637,0.001,99126.0,99123.0,0.201879]
[1737977392438,0.001,99130.0,99123.0,0.201879]
[1737977393940,0.23173263,99133.0,99123.0,0.201879]
[1737977394140,0.001,99126.0,99123.0,0.201879]
[1737977394842,0.001,99130.0,99123.0,0.201879]
[1737977395141,0.001,99130.0,99120.0,0.201886]
[1737977395734,0.001,99126.0,99120.0,0.201886]
[1737977396242,0.001,99126.0,99123.0,0.201879]
[1737977396437,0.001,99126.0,99119.0,0.38545541]
[1737977396832,0.001,99126.0,99125.0,0.201876]
[1737977397439,0.001,99130.0,99125.0,0.201876]
[1737977398143,0.001,99130.0,99119.0,0.38597541]
[1737977398350,0.201881,99123.0,99111.0,0.3608]
[1737977398642,0.12453263,99121.0,99109.0,0.3608]
[1737977398845,0.201894,99117.0,99109.0,0.3608]
[1737977399149,0.1149,99116.0,99109.0,0.3608]
[1737977399351,0.201913,99107.0,99100.0,0.38591105]
[1737977399646,0.1102,99106.0,99100.0,0.38647105]
[1737977400244,0.1102,99106.0,99100.0,0.00056]
[1737977400446,0.312114,99106.0,99105.0,0.18052971]
[1737977400640,0.312114,99106.0,99100.0,0.24043175]
[1737977400946,0.201924,99101.0,99100.0,0.24043175]
[1737977401341,0.1102,99106.0,99100.0,0.24043175]
[1737977401541,0.312114,99106.0,99105.0,0.002]
[1737977402146,0.201919,99104.0,99100.0,0.24343175]
[1737977402348,0.201919,99104.0,99100.0,0.24643175]
[1737977403252,0.1808236,99101.0,99100.0,0.006]
[1737977403949,0.1808236,99101.0,99100.0,0.003]
[1737977405343,0.1808236,99101.0,99100.0,0.006]
[1737977405849,0.3827476,99101.0,99100.0,0.006]
[1737977406244,0.201933,99097.0,99096.0,0.00015136]
[1737977407557,0.201933,99097.0,99096.0,0.00315136]
[1737977407748,0.201933,99097.0,99096.0,0.00815136]
[1737977408250,0.501933,99097.0,99078.0,0.3608]
[1737977408452,0.201969,99080.0,99078.0,0.3608]
[1737977409256,0.1101,99087.0,99078.0,0.3608]
[1737977409449,0.00015136,99089.0,99078.0,0.3608]
[1737977409849,0.00015136,99089.0,99087.0,0.201952]
[1737977410051,0.00015136,99089.0,99088.0,0.432751]
[1737977410252,0.00015136,99089.0,99088.0,0.2308]
[1737977410656,0.00015136,99089.0,99088.0,0.432751]
[1737977410852,0.3608,99109.0,99094.0,0.201937]
[1737977411157,0.3608,99109.0,99095.0,0.3608]
[1737977411559,0.3608,99109.0,99097.0,0.201932]
[1737977411757,0.1039,99119.0,99104.0,0.3608]
[1737977411955,0.1808236,99106.0,99105.0,0.304716]
[1737977413356,0.1808236,99106.0,99105.0,0.32713144]
[1737977413549,0.001,99109.0,99105.0,0.12521544]
[1737977413755,0.00015136,99113.0,99112.0,0.201902]
[1737977414055,0.00015136,99113.0,99108.0,0.3608]
[1737977414056,0.00151389,99128.0,99121.0,0.201883]
[1737977414261,0.00151389,99128.0,99125.0,0.3608]
[1737977414650,0.00151389,99128.0,99118.0,0.20189]
[1737977414852,0.00151389,99128.0,99116.0,0.3608]
[1737977415051,0.00151389,99128.0,99121.0,0.201883]
[1737977415661,0.00751389,99128.0,99121.0,0.201883]
[1737977416253,0.00751389,99128.0,99116.0,0.3608]
[1737977416453,0.00751389,99128.0,99118.0,0.12453263]
[1737977416657,0.00751389,99128.0,99127.0,0.201871]
[1737977416964,0.00751389,99128.0,99117.0,0.2122]
[1737977417264,0.00651389,99128.0,99117.0,0.1029]
[1737977417462,0.201884,99121.0,99116.0,0.36132]
[1737977417657,0.00851389,99128.0,99116.0,0.3608]
[1737977418667,0.00751389,99128.0,99116.0,0.3608]
[1737977420362,0.3608,99123.0,99114.0,0.02243417]
[1737977420558,0.3608,99123.0,99113.0,0.00015136]
[1737977420772,0.48533263,99123.0,99113.0,0.00015136]
[1737977421762,0.68821363,99123.0,99113.0,0.00015136]
[1737977422159,0.201882,99122.0,99113.0,0.00015136]
[1737977422363,0.201884,99121.0,99113.0,0.00015136]
[1737977422563,0.48985264,99123.0,99113.0,0.00015136]
[1737977422766,0.3658,99123.0,99113.0,0.02196605]
[1737977423067,0.3658,99123.0,99113.0,0.00015136]
[1737977423364,0.005,99123.0,99122.0,0.201882]
[1737977423959,0.001,99123.0,99122.0,0.201882]
[1737977424567,0.00151389,99128.0,99118.0,0.3608]
[1737977424771,0.00151389,99128.0,99127.0,0.3608]
[1737977425563,0.00151389,99128.0,99127.0,0.5758]
[1737977426271,0.00151389,99128.0,99127.0,0.5768]
[1737977426673,0.00151389,99128.0,99127.0,0.59613646]
[1737977427069,0.00251389,99128.0,99127.0,0.59613646]
[1737977431863,0.00251389,99128.0,99127.0,0.001]
[1737977432069,0.20438289,99128.0,99127.0,0.001]
[1737977432268,0.201898,99114.0,99113.0,0.00015136]
[1737977432473,0.201898,99114.0,99097.0,0.3608]
[1737977432474,0.201931,99098.0,99097.0,0.3608]
[1737977432673,0.050475,99113.0,99086.0,0.3608]
[1737977432674,0.201917,99105.0,99086.0,0.3608]
[1737977432981,0.201941,99093.0,99092.0,0.24043175]
[1737977433363,0.201941,99093.0,99092.0,0.06030543]
[1737977433972,0.0199098,99093.0,99092.0,0.06030543]
[1737977434276,0.00015136,99102.0,99092.0,0.06030543]
[1737977434476,0.00015136,99102.0,99094.0,0.3608]
[1737977435474,0.12054541,99099.0,99094.0,0.3608]
[1737977435671,0.12054541,99099.0,99096.0,0.201935]
[1737977435877,0.12054541,99099.0,99098.0,0.201931]
[1737977436572,0.00015136,99102.0,99101.0,0.201924]
[1737977438084,0.00015136,99102.0,99099.0,0.201928]
[1737977438380,0.00015136,99102.0,99101.0,0.201924]
[1737977438780,0.00015136,99102.0,99101.0,0.204924]
[1737977439080,0.00015136,99102.0,99101.0,0.206924]
[1737977439281,0.09042571,99121.0,99101.0,0.206924]
[1737977439282,0.09042571,99121.0,99113.0,0.201899]
[1737977439480,0.09042571,99121.0,99118.0,0.201889]
[1737977439686,0.09042571,99121.0,99114.0,0.2134]
[1737977439987,0.201894,99116.0,99111.0,0.3608]
[1737977440576,0.201898,99114.0,99111.0,0.3608]
[1737977440788,0.1087,99115.0,99104.0,0.00015136]
[1737977440983,0.201907,99110.0,99104.0,0.00015136]
[1737977441182,0.1018,99113.0,99104.0,0.00015136]
[1737977441589,0.201904,99112.0,99104.0,0.00015136]
[1737977441893,0.201908,99109.0,99104.0,0.00015136]
[1737977442090,0.1018,99113.0,99104.0,0.00015136]
[1737977442283,0.201911,99108.0,99104.0,0.00015136]
[1737977442483,0.1023,99107.0,99104.0,0.00015136]
[1737977443393,0.01998218,99123.0,99110.0,0.201906]
[1737977443694,0.12453263,99130.0,99104.0,0.00015136]
[1737977443695,0.12453263,99130.0,99105.0,0.3114]
[1737977443896,0.12453263,99120.0,99107.0,0.3608]
[1737977444193,0.32641963,99120.0,99107.0,0.3608]
[1737977444585,0.12453263,99120.0,99107.0,0.3608]
[1737977445186,0.3608,99119.0,99107.0,0.3608]
[1737977445387,0.201914,99113.0,99104.0,0.00115136]
[1737977445586,0.09042571,99114.0,99104.0,0.00015136]
[1737977446997,0.201922,99112.0,99104.0,0.00015136]
[1737977447298,0.1078,99111.0,99104.0,0.00015136]
[1737977447994,0.09042571,99106.0,99104.0,0.00015136]
[1737977448201,0.050489,99096.0,99077.0,0.3608]
[1737977448393,0.3608,99087.0,99077.0,0.3608]
[1737977448693,0.3217,99086.0,99077.0,0.3608]
[1737977448890,0.1078,99086.0,99077.0,0.3608]
[1737977449088,0.3608,99097.0,99077.0,0.3608]
[1737977449301,0.201972,99088.0,99077.0,0.3608]
[1737977449495,0.201973,99087.0,99077.0,0.3608]
[1737977449697,0.201979,99085.0,99077.0,0.3608]
[1737977449998,0.12453263,99090.0,99077.0,0.3608]
[1737977450199,0.201986,99081.0,99077.0,0.3608]
[1737977450400,0.201977,99085.0,99077.0,0.3658]
[1737977450701,0.29240271,99085.0,99077.0,0.3658]
[1737977451090,0.29240271,99085.0,99077.0,0.3688]
[1737977451498,0.201984,99082.0,99077.0,0.3688]
[1737977452999,0.29240371,99085.0,99077.0,0.3698]
[1737977453194,0.09042571,99085.0,99077.0,0.3698]
[1737977453389,0.201989,99079.0,99077.0,0.3698]
[1737977453891,0.201989,99079.0,99077.0,0.009]
[1737977454097,0.201989,99079.0,99077.0,0.006]
[1737977454399,0.201989,99079.0,99077.0,0.008]
[1737977454787,0.09042571,99085.0,99077.0,0.3688]
[1737977454986,0.0705797,99099.0,99098.0,0.20195]
[1737977455299,0.5744,99132.0,99098.0,0.7216]